bitfinex/quotes_BTCUSD_20241120
["timestamp","ask_amount","ask_price","bid_price","bid_amount"]
[1732119507954,0.21347912,94017.0,93985.0,0.10711512]
[1732119508245,0.106371,94011.0,93985.0,0.10711512]
[1732119508451,0.106371,94011.0,93945.0,0.01]
[1732119508452,0.106388,93995.0,93950.0,0.0784]
[1732119508627,0.5611,94004.0,93957.0,0.10711512]
[1732119508877,0.023,94002.0,93957.0,0.10711512]
[1732119509140,0.10711512,94001.0,93957.0,0.10711512]
[1732119509373,0.023,93998.0,93957.0,0.10711512]
[1732119509596,0.01,93993.0,93957.0,0.10711512]
[1732119509827,0.01,93990.0,93957.0,0.10711512]
[1732119510066,0.10711512,93989.0,93958.0,0.01071151]
[1732119510271,0.5381,93988.0,93935.0,0.0010644]
[1732119510521,0.20255114,93987.0,93938.0,0.10711512]
[1732119510744,0.06485202,93995.0,93949.0,0.10711512]
[1732119510745,0.01927531,93988.0,93949.0,0.10711512]
[1732119510993,0.5381,94000.0,93957.0,0.05]
[1732119510994,0.55737123,93999.0,93957.0,0.05]
[1732119511225,0.0458,94008.0,93957.0,0.05]
[1732119511226,0.01927123,93998.0,93957.0,0.05]
[1732119511430,0.01927123,93998.0,93962.0,0.10711512]
[1732119511685,0.04306916,94005.0,93963.0,0.1]
[1732119511905,0.04306916,94005.0,93972.0,0.10711512]
[1732119512191,0.0805,94018.0,93973.0,0.01071151]
[1732119512390,0.0017174,94022.0,93978.0,0.10711512]
[1732119512628,0.0017174,94022.0,93965.0,0.0816]
[1732119512629,0.0017176,94009.0,93982.0,0.10711512]
[1732119512836,0.0017176,94009.0,93983.0,0.01071151]
[1732119513089,0.0017176,94009.0,93984.0,0.10711512]
[1732119513314,0.0017176,94009.0,93986.0,0.10711512]
[1732119513529,0.0017176,94009.0,93989.0,0.10711512]
[1732119513751,0.0017176,94009.0,93978.0,0.1]
[1732119513752,0.0017176,94009.0,93992.0,0.10711512]
[1732119514383,0.0017176,94009.0,93996.0,0.10711512]
[1732119514641,0.0017176,94009.0,93997.0,0.01071151]
[1732119514852,0.0001176,94019.0,93998.0,0.10711512]
[1732119515115,0.0001176,94019.0,93989.0,0.01]
[1732119515116,0.0001176,94019.0,94002.0,0.10711512]
[1732119515317,0.0001176,94019.0,94009.0,0.10711512]
[1732119515762,0.0001176,94019.0,93995.0,0.01]
[1732119515763,0.0001176,94019.0,93976.0,0.01]
[1732119516079,0.0001176,94019.0,93972.0,0.0798]
[1732119516080,0.04306475,94019.0,93996.0,0.10711512]
[1732119516479,0.0001176,94019.0,93997.0,0.10711512]
[1732119516733,0.0001176,94019.0,93998.0,0.01071151]
[1732119516977,0.0001176,94019.0,93999.0,0.10711512]
[1732119518082,0.0001176,94019.0,94006.0,0.10711512]
[1732119518294,0.0001176,94019.0,94009.0,0.10711512]
[1732119518598,0.0001176,94019.0,94018.0,0.10711512]
[1732119519285,0.0017174,94022.0,94018.0,0.10711512]
[1732119519478,0.01921377,94064.0,93995.0,0.01]
[1732119519479,0.00036638,94051.0,94038.0,0.01]
[1732119519708,0.00036638,94051.0,94042.0,0.10711512]
[1732119520394,0.00036638,94051.0,94026.0,0.03448784]
[1732119520601,0.00036638,94051.0,94027.0,0.10711512]
[1732119520880,0.00036638,94051.0,94028.0,0.1]
[1732119521109,0.00036638,94051.0,94029.0,0.12790997]
[1732119521330,0.00036638,94051.0,94029.0,0.10711512]
[1732119522421,0.00036638,94051.0,94020.0,0.1]
[1732119522666,0.023,94049.0,94002.0,0.0751]
[1732119522889,0.64521512,94048.0,94003.0,0.11923512]
[1732119523099,0.10633,94047.0,94003.0,0.11923512]
[1732119523325,0.13011512,94046.0,94003.0,0.11923512]
[1732119523534,0.0806,94043.0,94004.0,0.01192351]
[1732119523747,0.0806,94043.0,93984.0,0.10711512]
[1732119523748,0.13011512,94042.0,93984.0,0.10711512]
[1732119524000,0.10711512,94042.0,94005.0,0.10711512]
[1732119524210,0.0192548,94045.0,94005.0,0.10711512]
[1732119524670,0.129318,94058.0,94006.0,0.1]
[1732119524920,0.10711512,94050.0,94007.0,0.12782663]
[1732119525136,0.10711512,94050.0,94007.0,0.10711512]
[1732119525607,0.01,94045.0,94007.0,0.10711512]
[1732119525822,0.10711512,94044.0,94007.0,0.10711512]
[1732119526047,0.12639897,94044.0,94007.0,0.11782663]
[1732119526314,0.10634,94038.0,93984.0,0.01316]
[1732119526523,0.023,94036.0,93985.0,0.10711512]
[1732119526747,0.023,94036.0,93985.0,0.12059112]
[1732119526748,0.106347,94032.0,93985.0,0.12059112]
[1732119526956,0.106354,94026.0,93985.0,0.12059112]
[1732119527195,0.66452707,94025.0,93986.0,0.01656911]
[1732119527459,0.05021107,94024.0,93987.0,0.10711512]
[1732119527671,0.15732619,94023.0,93987.0,0.10711512]
[1732119527946,0.05021107,94022.0,93987.0,0.10711512]
[1732119528159,0.23482881,94021.0,93987.0,0.10711512]
[1732119528381,0.05021107,94020.0,93968.0,0.0807]
[1732119528634,0.15732619,94019.0,93969.0,0.10711512]
[1732119528835,0.01,94010.0,93969.0,0.10711512]
[1732119529124,0.023,94008.0,93970.0,0.02360151]
[1732119529357,0.023,94008.0,93952.0,0.0792]
[1732119529358,0.023,94005.0,93952.0,0.0792]
[1732119529598,0.023,94003.0,93958.0,0.12003512]
[1732119529809,0.15753939,94002.0,93958.0,0.12003512]
[1732119530020,0.15680627,94001.0,93958.0,0.12003512]
[1732119530232,0.0310742,93992.0,93959.0,0.02492351]
[1732119530480,0.0310742,93987.0,93960.0,0.10711512]
[1732119530715,0.21617767,94000.0,93960.0,0.10711512]
[1732119530716,0.0310742,93982.0,93961.0,0.01949586]
[1732119530909,0.05042427,93981.0,93962.0,0.10711512]
[1732119531085,0.05042427,93980.0,93962.0,0.10711512]
[1732119531412,0.05042427,93979.0,93962.0,0.10711512]
[1732119531659,0.5381,93999.0,93962.0,0.10711512]
[1732119531660,0.05042427,93978.0,93963.0,0.01571151]
[1732119531916,0.5381,93999.0,93952.0,0.0792]
[1732119531917,0.05042427,93977.0,93965.0,0.1]
[1732119532136,0.05042427,93977.0,93952.0,0.0792]
[1732119532137,0.05042427,93976.0,93971.0,0.1]
[1732119532410,0.5381,94035.0,93976.0,0.01]
[1732119532613,0.0504,94047.0,93992.0,0.1]
[1732119532614,0.03115266,94022.0,93992.0,0.1]
[1732119532872,0.03116086,94021.0,93994.0,0.1]
[1732119533074,0.03116086,94020.0,93995.0,0.13882663]
[1732119533288,0.03116086,94019.0,93995.0,0.10711512]
[1732119533503,0.10711512,94041.0,94003.0,1.3]
[1732119533504,0.03116086,94018.0,94003.0,1.3]
[1732119533708,0.10711512,94041.0,94004.0,0.10711512]
[1732119533709,0.03116086,94017.0,94004.0,0.10711512]
[1732119533938,0.03116086,94016.0,94005.0,0.04939118]
[1732119534174,0.03116086,94015.0,94006.0,0.10711512]
[1732119534413,0.03116086,94014.0,94007.0,0.01292]
[1732119534663,0.03116086,94013.0,94008.0,0.10711512]
[1732119534857,0.03116086,94012.0,94009.0,0.02071151]
[1732119535084,0.044106,94042.0,94010.0,0.10711512]
[1732119535303,0.03116532,94041.0,94010.0,0.1565063]
[1732119535546,0.03116532,94040.0,94010.0,0.1565063]
[1732119535780,0.03116646,94040.0,94011.0,0.01292]
[1732119536010,0.03116646,94039.0,94012.0,0.10711512]
[1732119536246,0.03116734,94030.0,94013.0,0.02071151]
[1732119536494,0.044106,94042.0,94014.0,0.10711512]
[1732119536495,0.03116646,94029.0,94014.0,0.10711512]
[1732119536756,0.03116646,94028.0,94014.0,0.10711512]
[1732119536966,0.03116646,94027.0,94015.0,0.01071151]
[1732119537215,0.03116646,94026.0,94016.0,0.10711512]
[1732119537423,0.03116646,94025.0,94016.0,0.10711512]
[1732119537673,0.03116734,94027.0,94003.0,1.3]
[1732119537674,0.03116646,94024.0,94003.0,1.3]
[1732119537888,0.03116734,94021.0,94003.0,1.3]
[1732119538125,0.03116734,94011.0,94003.0,1.3]
[1732119538345,0.03116646,94020.0,94003.0,1.3]
[1732119538346,0.03116734,94005.0,94003.0,1.3]
[1732119538573,0.0768,94023.0,94003.0,1.3]
[1732119538574,0.03116646,94004.0,94003.0,1.3]
[1732119538800,0.04291036,94027.0,94003.0,1.3]
[1732119539298,0.01,94038.0,94003.0,1.3]
[1732119539516,0.000948,94016.0,94003.0,1.3]
[1732119539986,0.03116442,94015.0,94003.0,1.3]
[1732119540216,0.03116562,94004.0,94003.0,1.3]
[1732119540438,0.06233004,94004.0,94003.0,1.40711512]
[1732119540709,0.03116442,94004.0,94003.0,1.40711512]
[1732119542511,0.000948,94016.0,94003.0,1.48751512]
[1732119542763,0.000948,94016.0,94013.0,0.1]
[1732119542967,0.04447215,94015.0,94014.0,0.10817863]
[1732119543209,0.04447215,94015.0,94014.0,0.1]
[1732119543717,0.03120784,94015.0,94014.0,0.1]
[1732119543917,0.04447203,94015.0,94014.0,0.21811512]
[1732119544387,0.06396747,94015.0,94014.0,0.21811512]
[1732119544601,0.03123418,94015.0,94014.0,0.27411512]
[1732119544822,0.31023951,94071.0,94014.0,0.27411512]
[1732119544823,0.22864172,94066.0,94022.0,0.01]
[1732119545036,0.0924958,94070.0,94026.0,0.10711512]
[1732119545255,0.10711512,94078.0,94028.0,0.10711512]
[1732119545256,0.0924958,94072.0,94028.0,0.10711512]
[1732119545473,0.09319481,94074.0,94029.0,0.10106332]
[1732119545721,0.09319481,94070.0,94033.0,0.10711512]
[1732119545971,0.09319481,94070.0,94029.0,0.12277483]
[1732119545972,0.09319481,94071.0,94035.0,0.10711512]
[1732119546245,0.04324482,94076.0,94038.0,0.1]
[1732119546455,0.04324482,94076.0,94043.0,0.10711512]
[1732119546728,0.13643963,94076.0,94043.0,0.10711512]
[1732119546948,0.13643963,94076.0,94044.0,0.1]
[1732119546949,0.04324482,94076.0,94044.0,0.1]
[1732119547195,0.04324482,94076.0,94045.0,0.13354663]
[1732119547402,0.0004,94079.0,94067.0,0.10711512]
[1732119547657,0.0004,94079.0,94046.0,0.1786]
[1732119547658,0.0004,94079.0,94069.0,0.1]
[1732119547862,0.0004,94079.0,94071.0,0.1]
[1732119548083,0.0004,94079.0,94072.0,0.10711512]
[1732119548314,0.0004,94079.0,94073.0,0.02071151]
[1732119548575,0.0004,94079.0,94074.0,0.10711512]
[1732119549014,0.0004,94079.0,94074.0,0.13830939]
[1732119549459,0.0004,94079.0,94076.0,0.10711512]
[1732119550337,0.0004,94079.0,94062.0,0.1]
[1732119550338,0.0004,94079.0,94064.0,0.04314569]
[1732119550588,0.0004,94079.0,94077.0,0.10711512]
[1732119551043,0.0004,94079.0,94054.0,0.01]
[1732119551284,0.0004,94079.0,94078.0,0.10711512]
[1732119551490,0.0004,94079.0,94078.0,0.11782663]
[1732119551943,0.0004,94079.0,94051.0,0.09135518]
[1732119552169,0.0004,94079.0,94052.0,0.10711512]
[1732119552613,0.0021126,94079.0,94052.0,0.10711512]
[1732119553290,0.04446573,94079.0,94052.0,0.10711512]
[1732119553518,0.023,94078.0,94040.0,0.04232728]
[1732119553747,0.023,94078.0,94041.0,0.10711512]
[1732119553977,0.023,94076.0,94041.0,0.10711512]
[1732119554205,0.10711512,94075.0,94041.0,0.10711512]
[1732119554482,0.023,94074.0,94042.0,0.01071151]
[1732119554734,0.03102351,94073.0,94043.0,0.10711512]
[1732119555193,0.03102351,94072.0,94044.0,0.1]
[1732119555407,0.03102351,94071.0,94045.0,0.12782663]
[1732119555674,0.03102351,94078.0,94046.0,0.1]
[1732119555904,0.03102351,94078.0,94048.0,0.1]
[1732119556116,0.04570216,94079.0,94056.0,0.10711512]
[1732119556370,0.0021126,94079.0,94059.0,0.10711512]
[1732119556587,0.0021126,94079.0,94061.0,0.0759]
[1732119556816,0.0021126,94079.0,94063.0,0.1]
[1732119557112,0.0021126,94079.0,94065.0,0.1]
[1732119557350,0.0021126,94079.0,94066.0,0.14541663]
[1732119557561,0.0021126,94079.0,94067.0,0.1]
[1732119557775,0.0021126,94079.0,94068.0,0.10711512]
[1732119557989,0.0021126,94079.0,94069.0,0.1]
[1732119558217,0.03962944,94090.0,94071.0,0.1]
[1732119558433,0.0004,94099.0,94072.0,0.10711512]
[1732119558891,0.0004,94099.0,94071.0,0.0999]
[1732119558892,0.04413669,94097.0,94075.0,0.10711512]
[1732119559096,0.0004,94099.0,94082.0,0.10711512]
[1732119559772,0.0001178,94104.0,94082.0,0.10711512]
[1732119560013,0.0001178,94104.0,94083.0,0.01629151]
[1732119560213,0.0001178,94104.0,94084.0,0.10711512]
[1732119560429,0.0001178,94104.0,94085.0,0.20711512]
[1732119560661,0.0001178,94104.0,94088.0,0.10711512]
[1732119561340,0.0001178,94104.0,94098.0,0.1]
[1732119561552,0.0001178,94104.0,94099.0,0.10711512]
[1732119561787,0.0001178,94104.0,94088.0,0.011]
[1732119562005,0.0001178,94104.0,94089.0,0.10711512]
[1732119569956,0.0001178,94104.0,94066.0,0.0753]
[1732119570174,0.01,94101.0,94045.0,0.0486]
[1732119570412,0.023,94102.0,94066.0,0.10711512]
[1732119570413,0.023,94099.0,94066.0,0.10711512]
[1732119570674,0.023,94097.0,94066.0,0.10711512]
[1732119570898,0.23279825,94096.0,94067.0,0.01071151]
[1732119571101,0.04240813,94095.0,94067.0,0.01071151]
[1732119571308,0.01940813,94094.0,94067.0,0.01071151]
[1732119571752,0.01940813,94093.0,94068.0,0.10711512]
[1732119571969,0.01940813,94092.0,94068.0,0.10711512]
[1732119572182,0.04240813,94100.0,94068.0,0.10711512]
[1732119572391,0.04240813,94100.0,94069.0,0.01071151]
[1732119572392,0.01940813,94099.0,94069.0,0.01071151]
[1732119572596,0.023,94100.0,94069.0,0.01071151]
[1732119572597,0.01940813,94098.0,94070.0,0.10711512]
[1732119572813,0.01940813,94097.0,94070.0,0.10711512]
[1732119573046,0.01940813,94096.0,94071.0,0.01071151]
[1732119573254,0.01940813,94095.0,94072.0,0.10711512]
[1732119573476,0.01940813,94094.0,94073.0,0.1]
[1732119573695,0.01940813,94093.0,94074.0,0.10711512]
[1732119573914,0.01940813,94093.0,94075.0,0.03486245]
[1732119574148,0.0001178,94104.0,94075.0,0.03486245]
[1732119574149,0.01940813,94103.0,94076.0,0.10711512]
[1732119574385,0.01940813,94102.0,94076.0,0.10711512]
[1732119574627,0.0001178,94104.0,94078.0,0.1]
[1732119574628,0.01940813,94101.0,94078.0,0.1]
[1732119574851,0.01952327,94103.0,94080.0,0.1]
[1732119575063,0.0001178,94104.0,94081.0,0.13899567]
[1732119575244,0.0001178,94104.0,94081.0,0.10817788]
[1732119575489,0.0001178,94104.0,94082.0,0.1]
[1732119575749,0.0001178,94104.0,94090.0,0.10711512]
[1732119575983,0.0001178,94104.0,94091.0,0.11071151]
[1732119576223,0.001711,94094.0,94092.0,0.10711512]
[1732119576471,0.001711,94094.0,94093.0,0.1]
[1732119576683,0.001711,94094.0,94093.0,0.20711512]
[1732119576911,0.001711,94094.0,94093.0,0.22989778]
[1732119578801,0.001711,94094.0,94093.0,0.20711512]
[1732119579048,0.001711,94094.0,94093.0,0.20817769]
[1732119579475,0.001711,94094.0,94093.0,0.20711512]
[1732119579731,0.001711,94094.0,94093.0,0.25036243]
[1732119579962,0.001711,94094.0,94093.0,0.37186243]
[1732119580198,0.001711,94094.0,94093.0,0.41111982]
[1732119581990,0.001711,94094.0,94093.0,0.42111982]
[1732119586934,0.001711,94094.0,94093.0,0.15036243]
[1732119588657,0.001711,94094.0,94093.0,0.25036243]
[1732119588871,0.001711,94094.0,94093.0,0.28336243]
[1732119589126,0.001711,94094.0,94093.0,0.29336243]
[1732119589346,0.0017128,94113.0,94112.0,0.01]
[1732119589564,0.0017116,94137.0,94124.0,0.01]
[1732119589774,0.01826101,94125.0,94124.0,0.21711512]
[1732119590016,0.01826101,94125.0,94124.0,0.23882663]
[1732119590244,0.0017116,94137.0,94126.0,0.01]
[1732119590475,0.0017116,94137.0,94128.0,0.10711512]
[1732119590687,0.0017116,94137.0,94128.0,0.1273074]
[1732119590897,0.0017116,94137.0,94128.0,0.2273074]
[1732119591339,0.0017116,94137.0,94128.0,0.25885621]
[1732119592432,0.0017116,94137.0,94128.0,0.2273074]
[1732119593387,0.0017116,94137.0,94128.0,0.26987567]
[1732119594703,0.0017116,94137.0,94128.0,0.34787567]
[1732119595114,0.0017116,94137.0,94128.0,0.38087567]
[1732119595319,0.0017116,94137.0,94128.0,0.35787567]
[1732119595529,0.0017116,94137.0,94128.0,0.33787567]
[1732119595745,0.0017116,94137.0,94128.0,0.35784233]
[1732119596202,0.0017116,94137.0,94128.0,0.34784233]
[1732119596411,0.0017116,94137.0,94128.0,0.3053074]
[1732119596637,0.0017116,94137.0,94128.0,0.1273074]
[1732119598223,0.0017116,94137.0,94128.0,0.2273074]
[1732119598486,0.0017116,94137.0,94128.0,0.2373074]
[1732119599128,0.0017116,94137.0,94128.0,0.2273074]
[1732119600493,0.0017116,94137.0,94128.0,0.25984233]
[1732119600730,0.0017116,94137.0,94128.0,0.2273074]
[1732119601380,0.0017116,94137.0,94128.0,0.2473074]
[1732119601603,0.0017116,94137.0,94128.0,0.23624547]
[1732119602953,0.01030485,94132.0,94129.0,0.0491]
[1732119603183,0.04395282,94164.0,94129.0,0.0491]
[1732119603184,0.0476,94193.0,94131.0,0.10711512]
[1732119603396,0.0476,94193.0,94160.0,0.10711512]
[1732119603604,0.0476,94193.0,94161.0,0.13253493]
[1732119603605,0.04371801,94188.0,94161.0,0.13253493]
[1732119603811,0.01,94186.0,94162.0,0.10711512]
[1732119604023,0.001711,94188.0,94163.0,0.12396501]
[1732119604237,0.001711,94188.0,94165.0,0.1]
[1732119604461,0.001711,94188.0,94167.0,0.1]
[1732119604686,0.001711,94188.0,94181.0,0.10711512]
[1732119604933,1.998529,94200.0,94183.0,0.10711512]
[1732119605155,1.998529,94200.0,94184.0,0.1339474]
[1732119605392,2.0407857,94200.0,94185.0,0.10711512]
[1732119605616,2.0407857,94200.0,94186.0,0.05805365]
[1732119605842,2.0407857,94200.0,94188.0,0.1]
[1732119606072,2.0407857,94200.0,94190.0,0.1]
[1732119606323,2.0407857,94200.0,94192.0,0.1]
[1732119606552,2.0407857,94200.0,94191.0,0.14106252]
[1732119606553,2.0407857,94200.0,94194.0,0.1]
[1732119606766,2.0407857,94200.0,94195.0,0.10711512]
[1732119607008,2.0407857,94200.0,94196.0,0.1]
[1732119607226,2.0407857,94200.0,94197.0,0.13888943]
[1732119607734,2.0407857,94200.0,94197.0,0.03177431]
[1732119607949,2.0407857,94200.0,94168.0,0.00994771]
[1732119607950,0.01,94197.0,94171.0,0.03302795]
[1732119608214,0.01,94193.0,94172.0,0.10711512]
[1732119608425,0.01,94193.0,94173.0,0.03302795]
[1732119608677,0.01,94194.0,94174.0,0.10817684]
[1732119608911,0.01,94197.0,94175.0,0.01499596]
[1732119609140,0.01,94193.0,94176.0,0.10711512]
[1732119609362,0.01,94193.0,94168.0,0.04311337]
[1732119609363,0.01,94190.0,94168.0,0.04311337]
[1732119609615,0.01,94190.0,94099.0,0.14209048]
[1732119609616,0.01,94177.0,94141.0,0.0807]
[1732119609829,0.01,94177.0,94146.0,0.10711512]
[1732119610076,0.01,94177.0,94149.0,0.10711512]
[1732119610530,0.0555,94188.0,94159.0,0.10711512]
[1732119610779,0.01,94181.0,94160.0,0.1]
[1732119611040,0.01,94177.0,94161.0,0.10711512]
[1732119611253,0.01945694,94198.0,94168.0,0.10711512]
[1732119611511,0.01,94190.0,94169.0,0.1]
[1732119611761,0.01,94197.0,94171.0,0.1]
[1732119611984,0.01,94193.0,94173.0,0.1]
[1732119612205,0.01,94193.0,94175.0,0.1]
[1732119612414,0.01,94193.0,94177.0,0.1]
[1732119612635,0.01,94193.0,94178.0,0.10711512]
[1732119613084,0.0017096,94194.0,94178.0,0.10711512]
[1732119613291,0.0017096,94194.0,94179.0,0.13136756]
[1732119613499,0.0017096,94194.0,94180.0,0.13096339]
[1732119613706,0.0017096,94194.0,94181.0,0.1]
[1732119613929,0.0017096,94194.0,94182.0,0.10711512]
[1732119614402,0.01,94193.0,94182.0,0.10711512]
[1732119614635,0.01,94193.0,94183.0,0.03136756]
[1732119614866,0.01,94193.0,94184.0,0.10711512]
[1732119615084,0.01,94193.0,94169.0,0.04268519]
[1732119615307,0.0017096,94194.0,94145.0,0.0794]
[1732119615308,0.01,94181.0,94145.0,0.0794]
[1732119615521,0.01,94181.0,94164.0,0.10711512]
[1732119617634,0.01,94153.0,94133.0,0.10711512]
[1732119617841,0.106186,94175.0,94133.0,0.10711512]
[1732119617842,0.01,94141.0,94133.0,0.10711512]
[1732119618083,0.01,94140.0,94128.0,0.0008548]
[1732119618554,0.01,94136.0,94128.0,0.0008548]
[1732119618760,0.01,94129.0,94128.0,0.0008548]
[1732119619653,0.03947869,94151.0,94128.0,0.10796992]
[1732119619907,0.23971263,94176.0,94129.0,0.11897432]
[1732119619908,0.005,94154.0,94129.0,0.11897432]
[1732119620111,0.005,94154.0,94130.0,0.11198291]
[1732119620385,0.005,94159.0,94132.0,0.1]
[1732119620592,0.0798,94163.0,94132.0,0.1]
[1732119620593,0.01947869,94161.0,94134.0,0.1]
[1732119620833,0.005,94168.0,94142.0,0.1]
[1732119621046,0.01950072,94167.0,94144.0,0.1]
[1732119621253,0.0798,94180.0,94144.0,0.1]
[1732119621254,0.02450072,94166.0,94145.0,0.12782663]
[1732119621466,0.005,94167.0,94145.0,0.10711512]
[1732119621683,0.01950353,94166.0,94146.0,0.12071151]
[1732119621895,0.005,94168.0,94148.0,0.1]
[1732119622135,0.005,94172.0,94149.0,0.10711512]
[1732119622371,0.005,94164.0,94149.0,0.10711512]
[1732119622593,0.005,94164.0,94150.0,0.02191863]
[1732119622807,0.005,94157.0,94147.0,0.01207115]
[1732119623067,0.12338876,94180.0,94116.0,0.1]
[1732119623068,0.005,94154.0,94116.0,0.1]
[1732119623331,0.005,94154.0,94130.0,0.04336487]
[1732119623332,0.005,94144.0,94130.0,0.04336487]
[1732119623541,0.005,94144.0,94104.0,0.0762]
[1732119623781,0.005,94144.0,94128.0,0.10796992]
[1732119624426,0.005,94144.0,94129.0,0.11079699]
[1732119625135,0.01950042,94143.0,94129.0,0.11079699]
[1732119625400,0.005,94148.0,94129.0,0.11079699]
[1732119625696,0.005,94144.0,94130.0,0.02187669]
[1732119626619,0.01949329,94143.0,94130.0,0.02187669]
[1732119626855,0.01949329,94142.0,94130.0,0.02187669]
[1732119627140,0.005,94136.0,94128.0,0.0008548]
[1732119627372,0.11209755,94151.0,94128.0,0.0008548]
[1732119627373,0.01949329,94135.0,94128.0,0.0008548]
[1732119627603,0.01948677,94135.0,94128.0,0.0008548]
[1732119627820,0.01948677,94134.0,94128.0,0.0008548]
[1732119628072,0.01948796,94135.0,94128.0,0.0008548]
[1732119628297,0.005,94136.0,94128.0,0.0008548]
[1732119629869,0.04210869,94137.0,94128.0,0.10796992]
[1732119630092,0.01948796,94150.0,94130.0,0.1]
[1732119630309,0.04364563,94147.0,94132.0,0.1]
[1732119630523,0.005,94151.0,94133.0,0.10711512]
[1732119631079,0.005,94151.0,94134.0,0.1]
[1732119631286,0.005,94151.0,94136.0,0.1]
[1732119631504,0.005,94153.0,94137.0,0.10711512]
[1732119631712,0.005,94151.0,94137.0,0.10711512]
[1732119631917,0.005,94151.0,94138.0,0.02332412]
[1732119632159,0.005,94151.0,94139.0,0.10711512]
[1732119632378,0.005,94151.0,94138.0,0.02332412]
[1732119632612,0.005,94151.0,94128.0,0.1008548]
[1732119632613,0.005,94151.0,94140.0,0.00255496]
[1732119632842,0.005,94142.0,94139.0,0.00255539]
[1732119633329,0.005,94135.0,94128.0,0.0008548]
[1732119633581,0.005,94131.0,94128.0,0.0008548]
[1732119633819,0.0483,94143.0,94128.0,0.0008548]
[1732119633820,0.005,94129.0,94128.0,0.0008548]
[1732119634705,0.005,94129.0,94063.0,0.09461891]
[1732119634706,0.005,94119.0,94099.0,0.0426713]
[1732119634937,0.10711512,94132.0,94100.0,0.10711512]
[1732119635187,0.10711512,94132.0,94101.0,0.01497864]
[1732119635436,0.10711512,94132.0,94101.0,0.12209376]
[1732119635676,0.10711512,94132.0,94101.0,0.10711512]
[1732119635892,0.10711512,94132.0,94102.0,0.1]
[1732119637625,0.01,94124.0,94099.0,0.0008547]
[1732119637842,0.10711512,94123.0,94099.0,0.0008547]
[1732119638607,0.01,94117.0,94099.0,0.0008547]
[1732119638825,0.10711512,94116.0,94099.0,0.0008547]
[1732119639259,0.01,94112.0,94099.0,0.0008547]
[1732119639491,0.10711512,94111.0,94099.0,0.0008547]
[1732119640212,0.0752,94110.0,94099.0,0.0008547]
[1732119640420,0.01,94106.0,94099.0,0.0008547]
[1732119640651,0.10711512,94105.0,94099.0,0.0008547]
[1732119641373,0.01,94100.0,94099.0,0.0008547]
[1732119641580,0.11711512,94100.0,94099.0,0.0008547]
[1732119642515,0.01,94094.0,94066.0,0.0008552]
[1732119642727,0.24639112,94094.0,94066.0,0.0008552]
[1732119642942,0.14011512,94094.0,94066.0,0.0008552]
[1732119643149,0.10711512,94094.0,94066.0,0.0008552]
[1732119643384,0.10319399,94100.0,94071.0,0.0767]
[1732119643385,0.04389399,94100.0,94071.0,0.0767]
[1732119643817,0.01943365,94107.0,94071.0,0.0767]
[1732119644066,0.10711512,94106.0,94072.0,0.00106292]
[1732119644284,0.04348055,94107.0,94084.0,0.04322645]
[1732119644511,0.10711512,94116.0,94084.0,0.04322645]
[1732119645214,0.10711512,94116.0,94072.0,0.1]
[1732119645215,0.01,94113.0,94072.0,0.1]
[1732119645423,0.10711512,94112.0,94071.0,0.0767]
[1732119645849,0.10711512,94112.0,94079.0,0.04397686]
[1732119646343,0.01944645,94111.0,94079.0,0.04397686]
[1732119646547,0.12656157,94110.0,94079.0,0.04397686]
[1732119646766,0.01944645,94109.0,94079.0,0.04397686]
[1732119646986,0.10711512,94108.0,94079.0,0.04397686]
[1732119647448,0.01,94106.0,94071.0,0.0767]
[1732119647668,0.01,94099.0,94071.0,0.0004]
[1732119647890,0.10711512,94098.0,94071.0,0.0004]
[1732119649945,0.55755987,94104.0,94072.0,0.10711512]
[1732119650066,0.01945987,94103.0,94074.0,0.0765]
[1732119650276,0.01,94117.0,94074.0,0.0765]
[1732119650277,0.10711512,94110.0,94076.0,0.1]
[1732119650502,0.10711512,94110.0,94093.0,0.0008547]
[1732119651342,0.01944532,94109.0,94093.0,0.0008547]
[1732119651546,0.05411669,94117.0,94093.0,0.0008547]
[1732119651547,0.01944532,94116.0,94093.0,0.0008547]
[1732119651751,0.12656044,94115.0,94093.0,0.0008547]
[1732119651979,0.01944532,94114.0,94093.0,0.0008547]
[1732119652267,0.05411669,94117.0,94093.0,0.0008547]
[1732119652268,0.01944532,94113.0,94093.0,0.0008547]
[1732119652477,0.01944532,94112.0,94093.0,0.0008547]
[1732119652711,0.01944532,94111.0,94094.0,0.00292813]
[1732119652883,0.01944532,94110.0,94094.0,0.00292813]
[1732119653080,0.12656044,94109.0,94094.0,0.00292813]
[1732119653289,0.02944532,94108.0,94094.0,0.00292813]
[1732119653560,0.12656044,94107.0,94093.0,0.0008547]
[1732119653777,0.01,94100.0,94093.0,0.0008547]
[1732119654055,0.12658357,94099.0,94093.0,0.0008547]
[1732119654258,0.05061797,94098.0,94093.0,0.0008547]
[1732119654416,0.15773309,94097.0,94093.0,0.0008547]
[1732119654615,0.033,94094.0,94093.0,0.0008547]
[1732119654832,0.19073309,94094.0,94093.0,0.0008547]
[1732119655745,0.01,94091.0,94069.0,0.0008534]
[1732119655922,0.15773309,94090.0,94069.0,0.0008534]
[1732119656123,0.05061797,94089.0,94069.0,0.0008534]
[1732119656383,0.15773309,94088.0,94069.0,0.0008534]
[1732119656590,0.01,94085.0,94069.0,0.0008534]
[1732119656791,0.10711512,94088.0,94069.0,0.0008534]
[1732119656792,0.01,94080.0,94069.0,0.0008534]
[1732119656998,0.10711512,94079.0,94069.0,0.0008534]
[1732119657250,0.023,94057.0,94042.0,0.04383328]
[1732119657373,0.023,94057.0,93999.0,0.0795]
[1732119657374,0.01,94040.0,94008.0,0.04322337]
[1732119657584,0.10711512,94039.0,94002.0,0.04270203]
[1732119657733,0.01,94034.0,93999.0,0.0795]
[1732119657932,0.12656351,94034.0,93999.0,0.12283539]
[1732119658157,0.01,94024.0,93999.0,0.0795]
[1732119658366,0.55754839,94033.0,93999.0,0.0795]
[1732119658569,0.01944839,94032.0,94005.0,0.00106385]
[1732119658789,0.5381,94033.0,94013.0,0.0462]
[1732119659053,0.0424349,94039.0,94014.0,0.12777204]
[1732119659277,0.01,94053.0,94014.0,0.11133699]
[1732119659492,0.10711512,94052.0,94014.0,0.11133699]
[1732119659710,0.01,94043.0,94015.0,0.0157937]